bitfinex-derivatives/quotes_BTCF0:USTF0_20241231
["timestamp","ask_amount","ask_price","bid_price","bid_amount"]
[1735618929343,0.48828,92690.0,92689.0,0.034038]
[1735618932040,0.48828,92690.0,92680.0,0.11206441]
[1735618932342,0.48828,92690.0,92685.0,0.05404]
[1735618932542,0.48828,92690.0,92688.0,0.054038]
[1735618932747,0.48528,92690.0,92688.0,0.054038]
[1735618932942,0.48728,92690.0,92688.0,0.054038]
[1735618933144,0.48828,92690.0,92688.0,0.054038]
[1735618933549,0.48628,92690.0,92688.0,0.054038]
[1735618933753,0.48528,92690.0,92688.0,0.054038]
[1735618934056,0.48628,92690.0,92688.0,0.054038]
[1735618934955,0.540317,92690.0,92688.0,0.054038]
[1735618935253,0.058037,92690.0,92688.0,0.054038]
[1735618936151,0.057037,92690.0,92688.0,0.054038]
[1735618936352,0.058037,92690.0,92688.0,0.054038]
[1735618936553,0.055037,92690.0,92688.0,0.054038]
[1735618936851,0.058037,92690.0,92688.0,0.054038]
[1735618938239,0.058037,92690.0,92688.0,0.034038]
[1735618942358,0.004,92690.0,92681.0,1.48056]
[1735618942552,0.054039,92687.0,92681.0,1.48]
[1735618943961,0.054039,92687.0,92683.0,0.054041]
[1735618944264,0.054039,92687.0,92684.0,0.054041]
[1735618945562,0.055039,92687.0,92684.0,0.054041]
[1735618946163,0.056039,92687.0,92684.0,0.054041]
[1735618947358,0.056039,92687.0,92684.0,0.034041]
[1735618950055,0.056039,92687.0,92686.0,0.054039]
[1735618951659,0.055039,92687.0,92686.0,0.054039]
[1735618951855,0.057039,92687.0,92686.0,0.054039]
[1735618952362,0.057039,92687.0,92686.0,0.034039]
[1735618955865,0.003,92687.0,92686.0,0.034039]
[1735618957468,0.003,92687.0,92680.0,1.50064]
[1735618957657,0.003,92687.0,92680.0,1.5]
[1735618957969,0.003,92687.0,92686.0,0.054039]
[1735618958666,0.002,92687.0,92686.0,0.054039]
[1735618958868,0.054037,92690.0,92686.0,0.054039]
[1735618959459,0.003,92687.0,92686.0,0.054039]
[1735618960158,0.001,92687.0,92686.0,0.054039]
[1735618961972,0.002,92687.0,92686.0,0.054039]
[1735618962359,0.002,92687.0,92680.0,1.50056]
[1735618962560,0.002,92687.0,92677.0,0.3608]
[1735618963258,0.0364,92686.0,92677.0,0.3608]
[1735618963475,0.054044,92678.0,92677.0,0.3608]
[1735618963972,0.054045,92677.0,92673.0,0.054047]
[1735618965665,0.054044,92678.0,92677.0,0.002]
[1735618966368,0.054044,92678.0,92677.0,0.001]
[1735618966668,0.054046,92676.0,92673.0,0.058047]
[1735618966870,0.08865623,92683.0,92673.0,0.058047]
[1735618967070,0.054046,92675.0,92673.0,0.057047]
[1735618967277,0.054046,92675.0,92673.0,0.054047]
[1735618967278,0.052046,92675.0,92673.0,0.054047]
[1735618969170,0.052046,92675.0,92673.0,0.057047]
[1735618969478,0.052046,92675.0,92673.0,0.058047]
[1735618970582,0.052046,92675.0,92674.0,1.5]
[1735618972480,0.052046,92675.0,92674.0,1.501]
[1735618972667,0.052046,92675.0,92674.0,1.504]
[1735618975984,0.052046,92675.0,92674.0,0.004]
[1735618981481,0.054042,92682.0,92677.0,0.054044]
[1735618981878,0.3608,92684.0,92682.0,0.054042]
[1735618982391,0.054041,92683.0,92682.0,0.034042]
[1735618983590,0.055041,92683.0,92682.0,0.034042]
[1735618984791,0.056041,92683.0,92682.0,0.034042]
[1735618985091,0.054045,92678.0,92676.0,0.414845]
[1735618985887,0.054045,92678.0,92676.0,0.3608]
[1735618986399,0.054045,92678.0,92676.0,0.3618]
[1735618986604,0.054045,92678.0,92676.0,0.3638]
[1735618987690,0.3608,92684.0,92676.0,0.3638]
[1735618987998,0.05404,92685.0,92682.0,0.054041]
[1735618988592,0.05404,92685.0,92683.0,0.054041]
[1735618989691,0.05504,92685.0,92683.0,0.054041]
[1735618990498,0.002,92685.0,92677.0,0.0373]
[1735618990699,0.054044,92679.0,92677.0,0.0373]
[1735618991094,0.054041,92684.0,92676.0,0.3608]
[1735618991296,0.054045,92678.0,92676.0,0.3608]
[1735618992303,0.054045,92678.0,92676.0,0.3628]
[1735618992489,0.054045,92678.0,92676.0,0.3638]
[1735618993392,0.3608,92685.0,92676.0,0.3638]
[1735618993592,0.054041,92685.0,92681.0,0.054042]
[1735618994897,0.055041,92685.0,92681.0,0.054042]
[1735618995397,0.054041,92684.0,92681.0,0.054042]
[1735618995903,0.001,92685.0,92681.0,0.054042]
[1735618996109,0.054041,92683.0,92681.0,0.054042]
[1735618997494,0.055041,92683.0,92681.0,0.054042]
[1735618998095,0.055041,92683.0,92681.0,0.034042]
[1735618999598,0.415841,92683.0,92681.0,0.034042]
[1735619000098,0.055041,92683.0,92681.0,0.034042]
[1735619002498,0.055041,92683.0,92676.0,0.3608]
[1735619003011,0.055041,92683.0,92681.0,0.054042]
[1735619004099,0.054041,92683.0,92681.0,0.054042]
[1735619004907,0.055041,92683.0,92681.0,0.054042]
[1735619006504,0.054041,92683.0,92681.0,0.054042]
[1735619007109,0.01523733,92687.0,92685.0,0.05404]
[1735619007313,0.3608,92693.0,92686.0,0.1101]
[1735619007507,0.3608,92693.0,92690.0,0.034037]
[1735619007707,0.3608,92693.0,92691.0,1.5]
[1735619008102,0.3608,92693.0,92690.0,0.034037]
[1735619008704,0.054036,92692.0,92690.0,0.034037]
[1735619008910,0.24031778,92693.0,92690.0,0.034037]
[1735619009413,0.24031778,92693.0,92687.0,1.5006]
[1735619009414,0.054036,92692.0,92691.0,0.054036]
[1735619011110,0.055036,92692.0,92691.0,0.054036]
[1735619012499,0.055036,92692.0,92691.0,0.034036]
[1735619015010,0.001,92692.0,92686.0,0.1101]
[1735619016212,0.23831778,92693.0,92686.0,0.1111]
[1735619016713,0.23831778,92693.0,92686.0,0.1101]
[1735619017010,0.054038,92689.0,92686.0,0.1111]
[1735619017220,0.054038,92689.0,92686.0,0.1121]
[1735619017404,0.054038,92689.0,92686.0,0.0911]
[1735619018008,0.054038,92689.0,92687.0,0.054039]
[1735619022623,0.054038,92689.0,92687.0,0.034039]
[1735619027417,0.054038,92689.0,92686.0,0.0901]
[1735619028020,0.054038,92689.0,92687.0,0.054039]
[1735619030226,0.01521555,92693.0,92691.0,0.054036]
[1735619030433,0.00161876,92694.0,92693.0,0.054035]
[1735619030621,0.00161876,92694.0,92686.0,0.0901]
[1735619031124,0.00161876,92694.0,92692.0,1.5]
[1735619031423,0.00161876,92694.0,92693.0,0.054035]
[1735619031624,0.00261876,92694.0,92693.0,0.054035]
[1735619032632,0.00261876,92694.0,92693.0,0.034035]
[1735619033127,0.00461876,92694.0,92693.0,0.034035]
[1735619037525,0.00461876,92694.0,92692.0,1.50056]
[1735619037726,0.00461876,92694.0,92692.0,1.5]
[1735619037922,0.00461876,92694.0,92693.0,0.054035]
[1735619038727,0.00361876,92694.0,92693.0,0.054035]
[1735619038926,0.00461876,92694.0,92693.0,0.054035]
[1735619039131,0.00361876,92694.0,92693.0,0.054035]
[1735619039836,0.00461876,92694.0,92693.0,0.054035]
[1735619042434,0.00461876,92694.0,92693.0,0.034035]
[1735619047644,0.00461876,92694.0,92692.0,1.5006]
[1735619047844,0.00461876,92694.0,92692.0,1.5]
[1735619048046,0.00461876,92694.0,92693.0,0.054035]
[1735619048746,0.00261876,92694.0,92693.0,0.054035]
[1735619048948,0.00361876,92694.0,92693.0,0.054035]
[1735619049442,0.00261876,92694.0,92693.0,0.054035]
[1735619049647,0.00461876,92694.0,92692.0,0.00056]
[1735619049843,0.054038,92689.0,92688.0,0.054038]
[1735619050151,0.054038,92689.0,92683.0,0.3608]
[1735619050542,0.0744,92693.0,92673.0,0.0355]
[1735619050854,0.0744,92693.0,92680.0,0.054043]
[1735619050855,0.054039,92687.0,92680.0,0.054043]
[1735619051048,0.054039,92687.0,92677.0,0.07352316]
[1735619051247,0.054039,92687.0,92683.0,0.054041]
[1735619052151,0.054039,92687.0,92677.0,0.07352316]
[1735619052353,0.054039,92687.0,92684.0,0.05404]
[1735619052751,0.054039,92687.0,92685.0,0.05404]
[1735619053756,0.06937362,92687.0,92685.0,0.05404]
[1735619054748,0.06937362,92687.0,92685.0,0.05604]
[1735619055159,0.06937362,92687.0,92685.0,0.05704]
[1735619055961,0.01533462,92687.0,92685.0,0.05704]
[1735619056152,0.091235,92693.0,92685.0,0.003]
[1735619056463,0.10590296,92693.0,92687.0,0.054039]
[1735619056650,0.054038,92690.0,92687.0,0.054039]
[1735619056852,0.05186796,92693.0,92687.0,0.054039]
[1735619057054,0.054038,92688.0,92687.0,0.054039]
[1735619057248,0.054039,92686.0,92685.0,0.003]
[1735619057853,0.054039,92686.0,92685.0,0.001]
[1735619058166,0.054039,92686.0,92685.0,0.003]
[1735619067369,0.3608,92689.0,92673.0,1.53606]
[1735619067574,0.054054,92661.0,92660.0,0.3608]
[1735619068075,0.07352316,92670.0,92660.0,0.3608]
[1735619068471,0.054054,92661.0,92660.0,0.3608]
[1735619069167,0.054054,92661.0,92660.0,0.3698]
[1735619069370,0.05405,92668.0,92660.0,0.3698]
[1735619069672,0.05405,92668.0,92665.0,0.054051]
[1735619070168,0.05405,92668.0,92666.0,0.036]
[1735619071459,0.05505,92668.0,92666.0,0.045]
[1735619072072,0.05505,92668.0,92666.0,0.049]
[1735619073472,0.05505,92668.0,92667.0,1.5]
[1735619074072,0.05405,92668.0,92667.0,1.5]
[1735619074679,0.05405,92668.0,92667.0,1.503]
[1735619075585,0.05405,92668.0,92667.0,1.504]
[1735619079083,0.05405,92668.0,92667.0,0.004]
[1735619100089,0.41485,92668.0,92667.0,0.004]
[1735619100290,0.3608,92668.0,92656.0,0.0347]
[1735619100499,0.054056,92657.0,92656.0,0.0347]
[1735619101394,0.3608,92660.0,92649.0,0.00064]
[1735619101395,0.05406,92650.0,92649.0,0.00064]
[1735619101698,0.05406,92650.0,92623.0,0.19373275]
[1735619101699,0.05106,92650.0,92644.0,0.0354]
[1735619101999,0.04306,92650.0,92645.0,1.5]
[1735619102193,0.04306,92650.0,92645.0,1.50056]
[1735619103482,0.04406,92650.0,92648.0,0.0106189]
[1735619103690,0.04106,92650.0,92648.0,0.0106189]
[1735619104497,0.04106,92650.0,92648.0,0.0116189]
[1735619105088,0.04006,92650.0,92648.0,0.0046189]
[1735619106004,0.05404252,92650.0,92648.0,0.0046189]
[1735619107008,0.054057,92657.0,92652.0,0.054059]
[1735619107193,0.054061,92650.0,92648.0,0.0046189]
[1735619107496,0.054061,92650.0,92649.0,1.5]
[1735619107703,0.054057,92656.0,92648.0,0.0046189]
[1735619108003,0.3608,92660.0,92659.0,0.054055]
[1735619108212,0.3608,92668.0,92654.0,0.3608]
[1735619108503,0.3608,92668.0,92655.0,0.0367]
[1735619108697,0.3608,92668.0,92666.0,0.054051]
[1735619108904,0.3608,92668.0,92667.0,0.0734]
[1735619109103,0.0684953,92669.0,92667.0,0.0734]
[1735619109398,0.001,92668.0,92667.0,0.12745]
[1735619110600,0.005,92668.0,92667.0,0.12745]
[1735619110903,0.004,92668.0,92667.0,0.12745]
[1735619111091,0.05824418,92674.0,92667.0,0.0744]
[1735619111295,0.054047,92673.0,92670.0,0.054049]
[1735619112399,0.054047,92673.0,92670.0,0.034049]
[1735619112598,0.063047,92673.0,92670.0,0.035049]
[1735619112810,0.054048,92672.0,92670.0,0.035049]
[1735619113599,0.054048,92672.0,92670.0,0.001]
[1735619114511,0.05405,92668.0,92667.0,0.0375]
[1735619115312,0.054057,92656.0,92651.0,0.036]
[1735619115613,0.054059,92654.0,92651.0,0.090059]
[1735619115804,0.054059,92654.0,92652.0,0.0368]
[1735619116201,0.3608,92668.0,92653.0,0.054058]
[1735619116202,0.054055,92660.0,92653.0,0.054058]
[1735619116410,0.054055,92660.0,92654.0,0.054058]
[1735619117605,0.054055,92660.0,92654.0,0.058058]
[1735619117813,0.054055,92659.0,92654.0,0.058058]
[1735619118312,0.054055,92659.0,92655.0,0.054057]
[1735619119214,0.3608,92668.0,92655.0,0.054057]
[1735619119414,0.054056,92658.0,92655.0,0.054057]
[1735619120613,0.055056,92658.0,92655.0,0.054057]
[1735619122512,0.054056,92658.0,92655.0,0.034057]
[1735619123326,0.06808045,92658.0,92655.0,0.034057]
[1735619127613,0.06808045,92658.0,92652.0,0.0168]
[1735619127813,0.054057,92657.0,92655.0,0.055057]
[1735619128721,0.054057,92657.0,92655.0,0.054057]
[1735619129514,0.054057,92657.0,92655.0,0.055057]
[1735619131117,0.054053,92664.0,92663.0,0.054052]
[1735619131319,0.054049,92670.0,92663.0,0.3608]
[1735619131619,0.054049,92670.0,92667.0,0.05405]
[1735619131916,0.054049,92670.0,92668.0,0.0364]
[1735619132518,0.003,92670.0,92668.0,0.0164]
[1735619132708,0.003,92670.0,92669.0,0.054049]
[1735619133719,0.004,92670.0,92669.0,0.054049]
[1735619134212,0.006,92670.0,92669.0,0.054049]
[1735619134415,0.005,92670.0,92669.0,0.055049]
[1735619134819,0.054046,92676.0,92670.0,0.054048]
[1735619136015,0.054046,92676.0,92670.0,0.055048]
[1735619136615,0.054046,92676.0,92671.0,0.054048]
[1735619137518,0.054046,92676.0,92671.0,0.034048]
[1735619137822,0.054046,92676.0,92670.0,0.001]
[1735619137823,0.054046,92676.0,92675.0,0.3608]
[1735619138214,0.02199189,92682.0,92675.0,0.3608]
[1735619139022,0.054046,92676.0,92675.0,0.3608]
[1735619139223,0.055046,92676.0,92675.0,0.3608]
[1735619139925,0.055046,92676.0,92673.0,0.054047]
[1735619140425,0.056046,92676.0,92673.0,0.054047]
[1735619141124,0.054046,92676.0,92673.0,0.054047]
[1735619142427,0.054046,92676.0,92673.0,0.034047]
[1735619143415,0.054046,92676.0,92673.0,0.036047]
[1735619144020,0.054046,92674.0,92673.0,0.036047]
[1735619144429,0.054046,92674.0,92673.0,0.034047]
[1735619144622,0.054046,92674.0,92673.0,0.037047]
[1735619144823,0.054046,92674.0,92673.0,0.043047]
[1735619145419,0.054046,92674.0,92673.0,0.037047]
[1735619146329,0.01403609,92682.0,92677.0,0.054045]
[1735619146631,0.054043,92680.0,92677.0,0.054045]
[1735619146823,0.054044,92679.0,92677.0,0.054045]
[1735619147523,0.054044,92679.0,92677.0,0.034045]
[1735619148526,0.056044,92679.0,92677.0,0.034045]
[1735619149824,0.057044,92679.0,92677.0,0.034045]
[1735619150831,0.003,92679.0,92677.0,0.034045]
[1735619152422,0.003,92679.0,92671.0,0.01394695]
[1735619152732,0.002,92679.0,92670.0,0.0372]
[1735619152928,0.002,92679.0,92677.0,0.054045]
[1735619152929,0.003,92679.0,92677.0,0.054045]
[1735619153531,0.002,92679.0,92677.0,0.054045]
[1735619154535,0.002,92679.0,92677.0,0.055045]
[1735619154836,0.054042,92682.0,92679.0,0.054043]
[1735619156323,0.054042,92682.0,92679.0,0.056043]
[1735619157635,0.054042,92682.0,92679.0,0.036043]
[1735619159030,0.054042,92682.0,92680.0,0.054043]
[1735619160330,0.054043,92680.0,92679.0,0.002]
[1735619160533,0.054043,92680.0,92679.0,0.001]
[1735619161534,0.054043,92680.0,92678.0,0.054044]
[1735619162133,0.055043,92680.0,92678.0,0.054044]
[1735619162527,0.055043,92680.0,92678.0,0.034044]
[1735619164430,0.001,92680.0,92678.0,0.034044]
[1735619165730,0.001,92680.0,92671.0,1.50056]
[1735619165731,0.05404,92686.0,92671.0,1.50056]
[1735619165937,0.05404,92686.0,92680.0,0.054043]
[1735619166138,0.37487288,92689.0,92680.0,0.054043]
[1735619166139,0.05404,92685.0,92680.0,0.054043]
[1735619167533,0.05404,92685.0,92680.0,0.034043]
[1735619169040,0.05404,92685.0,92680.0,0.035043]
[1735619171034,0.05404,92685.0,92680.0,0.001]
[1735619171240,0.05404,92685.0,92682.0,0.054042]
[1735619172731,0.05404,92685.0,92682.0,0.034042]
[1735619173241,0.05504,92685.0,92682.0,0.034042]
[1735619173645,0.05604,92685.0,92682.0,0.034042]
[1735619178140,0.05504,92685.0,92683.0,0.054041]
[1735619178339,0.05504,92685.0,92683.0,0.034041]
[1735619178745,0.05604,92685.0,92683.0,0.034041]
[1735619179350,0.05504,92685.0,92683.0,0.034041]
[1735619179549,0.05404,92685.0,92683.0,0.034041]
[1735619182250,0.05604,92685.0,92683.0,0.034041]
[1735619182440,0.002,92685.0,92681.0,0.3608]
[1735619182638,0.054042,92682.0,92681.0,0.3608]
[1735619183650,0.054042,92682.0,92681.0,0.3618]
[1735619185158,0.056042,92682.0,92681.0,0.3608]
[1735619185358,0.057042,92682.0,92681.0,0.3608]
[1735619187458,0.057042,92682.0,92681.0,0.3408]
[1735619192062,0.056042,92682.0,92681.0,0.3408]
[1735619192256,0.057042,92682.0,92681.0,0.3408]
[1735619192665,0.056042,92682.0,92681.0,0.3208]
[1735619194765,0.057042,92682.0,92681.0,0.3208]
[1735619195353,0.056042,92682.0,92681.0,0.3208]
[1735619195567,0.057042,92682.0,92681.0,0.3208]
[1735619195764,0.057042,92682.0,92679.0,0.054043]
[1735619195962,0.055042,92682.0,92681.0,0.002]
[1735619196167,0.054042,92682.0,92681.0,0.003]
[1735619197768,0.055042,92682.0,92679.0,0.035043]
[1735619198063,0.001,92682.0,92680.0,0.054043]
[1735619199162,0.05404,92685.0,92680.0,0.054043]
[1735619199358,0.05404,92685.0,92681.0,0.054042]
[1735619200570,0.054041,92684.0,92681.0,0.054042]
[1735619201772,0.054041,92684.0,92681.0,0.056042]
[1735619202270,0.054041,92684.0,92681.0,0.054042]
[1735619202466,0.055041,92684.0,92681.0,0.034042]
[1735619203570,0.054042,92683.0,92681.0,0.034042]
[1735619203768,0.001,92684.0,92678.0,0.3608]
[1735619203961,0.054043,92681.0,92678.0,0.3608]
[1735619205262,0.054043,92681.0,92678.0,0.3618]
[1735619205772,0.055043,92681.0,92678.0,0.3608]
[1735619206367,0.056043,92681.0,92678.0,0.3608]
[1735619207472,0.056043,92681.0,92678.0,0.3408]
[1735619212479,0.056043,92681.0,92678.0,0.3208]
[1735619213373,0.056043,92681.0,92679.0,0.054044]
[1735619213575,0.056043,92681.0,92679.0,0.092244]
[1735619213770,0.056043,92681.0,92680.0,0.075]
[1735619214869,0.055043,92681.0,92680.0,0.075]
[1735619215272,0.001,92681.0,92680.0,0.075]
[1735619215770,0.054039,92688.0,92682.0,0.054042]
[1735619216373,0.07149038,92688.0,92682.0,0.054042]
[1735619217676,0.07149038,92688.0,92682.0,0.034042]
[1735619218176,0.01745138,92688.0,92682.0,0.034042]
[1735619218376,0.054039,92687.0,92682.0,0.035042]
[1735619218778,0.3608,92690.0,92682.0,0.035042]
[1735619218974,0.05404,92685.0,92682.0,0.034042]
[1735619219176,0.3608,92690.0,92680.0,0.075]
[1735619219177,0.37837396,92690.0,92680.0,0.075]
[1735619219374,0.054042,92681.0,92680.0,0.075]
[1735619221272,0.055042,92681.0,92680.0,0.075]
[1735619221983,0.056042,92681.0,92680.0,0.075]
[1735619222481,0.23849856,92690.0,92680.0,0.055]
[1735619222680,0.054042,92682.0,92680.0,0.1285337]
[1735619222880,0.054042,92682.0,92680.0,0.055]
[1735619225387,0.055042,92682.0,92680.0,0.055]
[1735619226480,0.056042,92682.0,92680.0,0.055]
[1735619227281,0.056042,92682.0,92680.0,0.0384]
[1735619227483,0.056042,92682.0,92679.0,0.0382]
[1735619227991,0.055042,92682.0,92679.0,0.0382]
[1735619228381,0.054042,92682.0,92679.0,0.0382]
[1735619232388,0.054042,92682.0,92679.0,0.0182]
[1735619235296,0.057042,92682.0,92679.0,1.5182]
[1735619236700,0.003,92682.0,92680.0,0.054043]
[1735619236997,0.003,92682.0,92680.0,0.090543]
[1735619238091,0.054038,92689.0,92680.0,0.0165]
[1735619238398,0.054038,92689.0,92684.0,0.05404]
[1735619239189,0.05404,92686.0,92684.0,0.05404]
[1735619241200,0.05504,92686.0,92684.0,0.05404]
[1735619242001,0.05604,92686.0,92684.0,0.05404]
[1735619242501,0.05604,92686.0,92684.0,0.03404]
[1735619244291,0.05704,92686.0,92684.0,0.03404]
[1735619245098,0.05404,92685.0,92682.0,0.3608]
[1735619245407,0.054041,92684.0,92682.0,0.3608]
[1735619247406,0.054041,92684.0,92682.0,0.3408]
[1735619247704,0.056041,92684.0,92682.0,0.3408]
[1735619248304,0.054041,92684.0,92682.0,0.3408]
[1735619248500,0.056041,92684.0,92682.0,0.3408]
[1735619248695,0.057041,92684.0,92682.0,0.3408]
[1735619249301,0.056041,92684.0,92682.0,0.3408]
[1735619249505,0.057041,92684.0,92682.0,0.3408]
[1735619251702,0.059041,92684.0,92682.0,0.3408]
[1735619252100,0.054047,92673.0,92672.0,0.00056]
[1735619252306,0.0735337,92682.0,92659.0,0.054055]
[1735619252609,0.054054,92662.0,92660.0,1.5735337]
[1735619252802,0.054054,92662.0,92660.0,1.5]
[1735619253007,0.054054,92662.0,92659.0,0.054055]
[1735619254112,0.0741,92671.0,92657.0,1.50056]
[1735619254297,0.0741,92671.0,92664.0,0.3608]
[1735619254509,0.054051,92667.0,92664.0,0.3608]
[1735619254703,0.054047,92674.0,92664.0,0.3608]
[1735619254900,0.054044,92679.0,92674.0,0.054046]
[1735619255105,0.01757998,92683.0,92674.0,0.054046]
[1735619255308,0.054044,92678.0,92674.0,0.054046]
[1735619255613,0.3608,92687.0,92674.0,0.054046]
[1735619255614,0.054045,92676.0,92674.0,0.054046]
[1735619256009,0.1850337,92690.0,92677.0,0.054045]
[1735619256010,0.054043,92681.0,92677.0,0.054045]
[1735619256214,0.1850337,92690.0,92677.0,0.054045]
[1735619256410,0.054044,92679.0,92677.0,0.054045]
[1735619257609,0.054044,92679.0,92677.0,0.034045]
[1735619257912,0.054045,92677.0,92673.0,0.3608]
[1735619258807,0.054045,92677.0,92673.0,0.414847]
[1735619259211,0.054045,92677.0,92674.0,0.054046]
[1735619261216,0.01732335,92680.0,92674.0,0.054046]
[1735619261417,0.054045,92676.0,92674.0,0.054046]
[1735619262221,0.054041,92685.0,92673.0,0.3608]
[1735619262515,0.054041,92685.0,92681.0,0.394842]
[1735619262708,0.054041,92685.0,92681.0,0.3408]
[1735619262908,0.00161876,92695.0,92689.0,0.054037]
[1735619262909,0.054037,92691.0,92689.0,0.054037]
[1735619265112,0.060037,92691.0,92689.0,0.054037]
[1735619267320,0.063037,92691.0,92689.0,0.054037]
[1735619267505,0.063037,92691.0,92689.0,0.034037]
[1735619272524,0.063037,92691.0,92683.0,0.0368]
[1735619272923,0.063037,92691.0,92689.0,0.054037]
[1735619273221,0.009,92691.0,92689.0,0.054037]
[1735619273622,0.1,92700.0,92697.0,0.054033]
[1735619273823,0.1,92700.0,92699.0,0.054032]
[1735619274216,0.1,92700.0,92699.0,1.554032]
[1735619274819,0.1,92700.0,92699.0,0.054032]
[1735619276016,0.09654934,92700.0,92699.0,0.092932]
[1735619276826,0.09654934,92700.0,92699.0,1.592932]
[1735619277219,0.10054934,92700.0,92699.0,1.592932]
[1735619277418,0.10054934,92700.0,92699.0,1.572932]
[1735619279227,0.10354934,92700.0,92699.0,1.573932]
[1735619280028,0.10354934,92700.0,92699.0,1.59123449]
[1735619281931,0.10354934,92700.0,92699.0,0.09123449]
[1735619282431,0.10354934,92700.0,92699.0,0.05720249]
[1735619283030,0.10354934,92700.0,92699.0,0.11123449]
[1735619284437,0.10354934,92700.0,92699.0,1.61123449]
[1735619286032,0.10354934,92700.0,92699.0,1.97203449]
[1735619286536,0.10354934,92700.0,92699.0,1.915832]
[1735619286835,0.10354934,92700.0,92699.0,0.3618]
[1735619287137,0.10354934,92700.0,92699.0,0.001]
[1735619287328,0.46434934,92700.0,92699.0,0.001]
[1735619287635,0.054037,92691.0,92690.0,0.0735337]
[1735619287936,0.054037,92691.0,92689.0,0.054038]
[1735619287937,0.054037,92691.0,92689.0,1.554038]
[1735619288325,0.054037,92691.0,92689.0,0.054038]
[1735619288522,0.05404,92685.0,92682.0,0.054041]
[1735619288927,0.05404,92685.0,92683.0,1.5]
[1735619289740,0.05604,92685.0,92683.0,1.554041]
[1735619290534,0.05704,92685.0,92683.0,1.554041]
[1735619292539,0.05704,92685.0,92683.0,1.534041]
[1735619296534,0.05704,92685.0,92683.0,0.054041]
[1735619298144,0.05704,92685.0,92683.0,0.034041]
[1735619302337,0.05604,92685.0,92683.0,0.035041]
[1735619302646,0.05604,92685.0,92683.0,0.001]
[1735619302945,0.05404,92685.0,92683.0,0.059041]
[1735619303542,0.05404,92685.0,92683.0,0.057041]
[1735619303747,0.05404,92685.0,92684.0,1.5]
[1735619307141,0.05404,92685.0,92683.0,0.054041]
[1735619307550,0.05404,92685.0,92683.0,0.034041]
[1735619309746,0.02490972,92693.0,92683.0,0.034041]
[1735619310137,0.054039,92687.0,92683.0,0.034041]
[1735619312238,0.054039,92687.0,92677.0,1.50056]
[1735619312448,0.054039,92687.0,92684.0,0.03404]
[1735619314152,0.05404,92686.0,92684.0,0.03404]
[1735619317554,0.05404,92686.0,92680.0,0.3608]
[1735619318047,0.05404,92686.0,92684.0,0.05404]
[1735619322554,0.05404,92686.0,92684.0,0.03404]
[1735619323544,0.05404,92686.0,92684.0,0.03804]
[1735619324150,0.05404,92686.0,92684.0,0.03504]
[1735619324341,0.05404,92686.0,92684.0,0.03604]
[1735619325151,0.05404,92686.0,92684.0,0.03504]
[1735619327351,0.05404,92686.0,92684.0,0.03404]
[1735619327560,0.05404,92686.0,92680.0,0.3608]
[1735619327747,0.054041,92685.0,92684.0,0.05404]
[1735619332664,0.054041,92685.0,92684.0,0.03404]
[1735619337460,0.054041,92685.0,92680.0,0.3608]
[1735619338055,0.054041,92685.0,92684.0,0.05404]
[1735619342458,0.054041,92685.0,92684.0,0.03404]
[1735619343868,0.054041,92684.0,92682.0,0.039]
[1735619346770,0.054041,92684.0,92682.0,0.04]
[1735619347366,0.054041,92684.0,92682.0,0.02]
[1735619351971,0.054041,92684.0,92682.0,0.001]
[1735619352365,0.01658609,92693.0,92680.0,0.3418]
[1735619352560,0.054042,92681.0,92680.0,0.3418]
[1735619354178,0.0735337,92690.0,92680.0,0.3418]
[1735619354369,0.05404,92686.0,92684.0,0.054041]
[1735619358181,0.05404,92686.0,92684.0,0.034041]
[1735619362481,0.37679279,92695.0,92680.0,0.3418]
[1735619363771,0.37679279,92695.0,92680.0,0.3428]
[1735619363971,0.05404,92685.0,92684.0,0.054041]
[1735619367385,0.05404,92685.0,92684.0,0.034041]
[1735619372588,0.05404,92685.0,92680.0,0.3608]
[1735619372886,0.05404,92685.0,92684.0,0.054041]
[1735619377488,0.05404,92685.0,92684.0,0.034041]
[1735619378691,0.054042,92682.0,92678.0,0.054044]
[1735619379080,0.054042,92682.0,92673.0,1.50056]
[1735619379282,0.054042,92682.0,92679.0,0.054043]
[1735619380687,0.054042,92682.0,92679.0,0.055043]
[1735619381892,0.054043,92681.0,92679.0,0.055043]
[1735619382392,0.054043,92681.0,92679.0,0.035043]
[1735619387601,0.054043,92681.0,92679.0,0.001]
[1735619387896,0.054043,92681.0,92679.0,0.055043]
[1735619392388,0.054043,92681.0,92679.0,0.036043]
[1735619392791,0.054043,92681.0,92679.0,0.038043]
[1735619393188,0.054043,92681.0,92679.0,0.037043]
[1735619393389,0.054043,92681.0,92679.0,0.036043]
[1735619395795,0.054043,92681.0,92679.0,0.001]
[1735619400504,0.05405,92668.0,92666.0,0.19373275]
[1735619400915,0.0377,92667.0,92666.0,0.19373275]
[1735619401121,0.0735,92667.0,92666.0,0.19373275]
[1735619402114,0.054055,92659.0,92653.0,0.0364]
[1735619402417,0.054055,92659.0,92655.0,0.054057]
[1735619402611,0.048055,92659.0,92655.0,0.054057]
[1735619402806,0.3608,92669.0,92667.0,0.05405]
[1735619403124,0.054046,92675.0,92673.0,0.054047]
[1735619403315,0.3608,92688.0,92668.0,0.037]
[1735619403516,0.37676678,92688.0,92676.0,0.3608]
[1735619403719,0.054043,92681.0,92677.0,0.0379]